[Event "EYCC Open-U14 2019"]
[Site "Bratislava"]
[Date "2019.08.03"]
[Round "2.6"]
[White "Hak, David"]
[Black "Morgunov, Marc"]
[Result "0-1"]
[ECO "B22"]
[WhiteElo "2012"]
[BlackElo "2314"]
[Annotator "NA"]
[PlyCount "126"]
[EventDate "2019.08.02"]
[EventType "swiss"]
[EventCountry "SVK"]
[SourceTitle "playchess.com"]
[Source "ChessBase"]
[SourceQuality "1"]
[TimeControl "40/5400+30:1800+30"]

1. e4 {[%emt 0:00:00]} c5 {[%emt 0:00:00]} 2. c3 {[%emt 0:00:00]} d5 {[%emt 0:00:00]} 3. exd5 {[%emt 0:00:00]} Qxd5 {[%emt 0:00:02]} 4. d4 {[%emt 0:00:00]} Nf6 {[%emt 0:00:44]} 5. Nf3 {[%emt 0:00:00]} e6 {[%emt 0:00:17]} 6. Be3 {[%emt 0:00:30]} cxd4 {[%emt 0:00:10]} 7. cxd4 {[%emt 0:00:35]} Be7 {[%emt 0:03:01]} 8. Nc3 {[%emt 0:01:48]} Qd8 {[%emt 0:01:59]} 9. Bd3 {[%emt 0:01:10]} Nc6 {[%emt 0:01:40]} 10. a3 {[%emt 0:01:22]} O-O {[%emt 0:01:31]} 11. O-O {[%emt 0:00:26]} a6 {[%emt 0:01:57]} 12. Rc1 {[%emt 0:10:15]} b6 {[%emt 0:07:13]} 13. Bb1 {[%emt 0:07:49]} Bb7 {[%emt 0:07:42]} 14. Qd3 {[%emt 0:06:21]} g6 {[%emt 0:04:14]} 15. d5 {[%emt 0:18:03]} exd5 {[%emt 0:10:08]} 16. Rfd1 {[%emt 0:03:36]} Na5 {[%emt 0:04:04]} 17. Ba2 {[%emt 0:02:34]} b5 {[%emt 0:02:47]} 18. Nxd5 {[%emt 0:10:36]} Nxd5 {[%emt 0:02:03]} 19. Bxd5 {[%emt 0:00:22]} Qxd5 {[%emt 0:00:46]} 20. Qxd5 {[%emt 0:01:54]} Bxd5 {[%emt 0:00:05]} 21. Rxd5 {[%emt 0:00:06]} Bf6 {[%emt 0:00:32]} 22. Ne5 {[%emt 0:16:32]} Bxe5 {[%emt 0:07:49]} 23. Rxe5 {[%emt 0:00:01]} Nc4 {[%emt 0:00:09]} 24. Re7 {[%emt 0:00:14]} Nxb2 {[%emt 0:01:07]} 25. Rcc7 {[%emt 0:01:42]} Nc4 {[%emt 0:02:14]} 26. g3 {[%emt 0:05:04]} Rae8 {[%emt 0:13:16]} 27. Rxe8 {[%emt 0:05:42]} Rxe8 {[%emt 0:00:06]} 28. Ra7 {[%emt 0:01:59]} a5 {[%emt 0:05:20]} 29. Bd4 {[%emt 0:01:36]} Rc8 {[%emt 0:01:00]} 30. Bc3 {[%emt 0:02:42]} Nxa3 {[%emt 0:02:23]} 31. Bxa5 {[%emt 0:00:19]} Nc4 {[%emt 0:00:24]} 32. Bb4 {[%emt 0:01:18]} Rb8 {[%emt 0:00:30]} 33. Kg2 {[%emt 0:00:24]} h5 {[%emt 0:00:58]} 34. h4 {[%emt 0:01:04]} Kg7 {[%emt 0:02:08]} 35. Bc3+ {[%emt 0:00:23]} Kf8 {[%emt 0:00:14]} 36. Bb4+ {[%emt 0:00:12]} Kg8 {[%emt 0:00:15]} 37. Kg1 {[%emt 0:00:50]} Nb2 {[%emt 0:01:34]} 38. Bd6 {[%emt 0:00:35]} Rd8 {[%emt 0:00:28]} 39. Be5 {[%emt 0:00:33]} Nd3 {[%emt 0:00:51]} 40. Bf6 {[%emt 0:00:00]} Rb8 {[%emt 0:00:00]} 41. Rd7 {[%emt 0:05:27]} Nc5 {[%emt 0:03:39]} 42. Rd5 {[%emt 0:05:10]} Ne6 {[%emt 0:00:27]} 43. Rd1 {[%emt 0:03:50]} b4 {[%emt 0:03:35]} 44. Rb1 {[%emt 0:03:46]} b3 {[%emt 0:00:51]} 45. Kf1 {[%emt 0:01:42]} Nc5 {[%emt 0:01:56]} 46. Bd4 {[%emt 0:02:10]} Ne4 {[%emt 0:04:56]} 47. Ke2 {[%emt 0:02:13]} f5 {[%emt 0:02:39]} 48. Kd3 {[%emt 0:05:15]} Kf7 {[%emt 0:00:26]} 49. Rb2 {[%emt 0:01:22]} Ke6 {[%emt 0:01:19]} 50. Kc4 {[%emt 0:02:11]} Nd6+ {[%emt 0:00:48]} 51. Kc3 {[%emt 0:00:46]} Kd5 {[%emt 0:00:28]} 52. Be3 {[%emt 0:02:20]} Nc4 {[%emt 0:01:04]} 53. Bf4 {[%emt 0:00:36]} Nxb2 {[%emt 0:00:08]} 54. Bxb8 {[%emt 0:00:17]} Nd1+ {[%emt 0:00:04]} 55. Kxb3 {[%emt 0:00:30]} Nxf2 {[%emt 0:00:06]} 56. Kc3 {[%emt 0:00:38]} Ke4 {[%emt 0:00:12]} 57. Kc4 {[%emt 0:00:25]} Nh1 {[%emt 0:00:38]} 58. Bc7 {[%emt 0:00:36]} Kf3 {[%emt 0:00:19]} 59. Kd5 {[%emt 0:00:09]} Nxg3 {[%emt 0:00:06]} 60. Ke6 {[%emt 0:00:51]} Kg4 {[%emt 0:00:17]} 61. Bd8 {[%emt 0:00:33]} f4 {[%emt 0:00:26]} 62. Kf6 {[%emt 0:00:49]} f3 {[%emt 0:00:17]} 63. Bb6 {[%emt 0:00:11]} Ne4+ {[%emt 0:00:09]} 0-1

[Event "EYCC Open-U14 2019"]
[Site "Bratislava"]
[Date "2019.08.03"]
[Round "2.7"]
[White "Krastev, Alexander"]
[Black "Cappelletto, Joshuaede"]
[Result "1-0"]
[ECO "B23"]
[WhiteElo "2325"]
[BlackElo "2138"]
[Annotator "NA"]
[PlyCount "93"]
[EventDate "2019.08.02"]
[EventType "swiss"]
[EventCountry "SVK"]
[SourceTitle "playchess.com"]
[Source "ChessBase"]
[SourceQuality "1"]
[TimeControl "40/5400+30:1800+30"]

1. e4 {[%emt 0:00:00]} c5 {[%emt 0:00:00]} 2. Nc3 {[%emt 0:00:00]} a6 {[%emt 0:00:24]} 3. Nf3 {[%emt 0:00:21]} d6 {[%emt 0:00:36]} 4. g3 {[%emt 0:02:27]} Nc6 {[%emt 0:05:05]} 5. Bg2 {[%emt 0:00:17]} g6 {[%emt 0:01:16]} 6. O-O {[%emt 0:02:20]} Bg7 {[%emt 0:00:06]} 7. Ne2 {[%emt 0:01:12]} Nf6 {[%emt 0:01:46]} 8. d3 {[%emt 0:00:12]} O-O {[%emt 0:01:46]} 9. c3 {[%emt 0:00:50]} Bd7 {[%emt 0:03:15]} 10. h3 {[%emt 0:00:55]} b5 {[%emt 0:01:45]} 11. g4 {[%emt 0:04:25]} Qc8 {[%emt 0:10:44]} 12. Ng3 {[%emt 0:02:05]} Rb8 {[%emt 0:07:42]} 13. Be3 {[%emt 0:04:31]} b4 {[%emt 0:04:35]} 14. Qc1 {[%emt 0:07:28]} Qb7 {[%emt 0:07:11]} 15. Nd2 {[%emt 0:09:17]} Qb5 {[%emt 0:06:58]} 16. c4 {[%emt 0:04:31]} Qa4 {[%emt 0:00:43]} 17. f4 {[%emt 0:01:41]} Nd4 {[%emt 0:09:03]} 18. Nf3 {[%emt 0:07:20]} Ne8 {[%emt 0:03:11]} 19. Nxd4 {[%emt 0:01:18]} cxd4 {[%emt 0:03:34]} 20. Bf2 {[%emt 0:03:28]} e5 {[%emt 0:06:10]} 21. f5 {[%emt 0:01:25]} Nc7 {[%emt 0:01:12]} 22. Be1 {[%emt 0:02:26]} Rfc8 {[%emt 0:05:55]} 23. Bd2 {[%emt 0:03:58]} Rb7 {[%emt 0:05:05]} 24. h4 {[%emt 0:05:02]} Be8 {[%emt 0:01:20]} 25. Kf2 {[%emt 0:07:38]} f6 {[%emt 0:04:11]} 26. a3 {[%emt 0:08:51]} bxa3 {[%emt 0:04:48]} 27. Rxa3 {[%emt 0:00:07]} Qd7 {[%emt 0:00:52]} 28. Qa1 {[%emt 0:00:32]} Bf7 {[%emt 0:02:27]} 29. Bf3 {[%emt 0:00:43]} Rbb8 {[%emt 0:01:54]} 30. b4 {[%emt 0:01:09]} Bf8 {[%emt 0:00:36]} 31. Rb1 {[%emt 0:01:25]} Rb6 {[%emt 0:00:41]} 32. Rb2 {[%emt 0:06:48]} Rcb8 {[%emt 0:00:22]} 33. Qe1 {[%emt 0:00:13]} Qc8 {[%emt 0:00:39]} 34. Ra1 {[%emt 0:01:49]} Qb7 {[%emt 0:00:27]} 35. Ke2 {[%emt 0:05:05]} Qa7 36. b5 {[%emt 0:02:55]} Nxb5 {[%emt 0:01:08]} 37. cxb5 {[%emt 0:00:20]} Rxb5 {[%emt 0:00:10]} 38. Rxb5 {[%emt 0:00:43]} Rxb5 {[%emt 0:00:07]} 39. Rb1 {[%emt 0:00:21]} Rc5 {[%emt 0:00:49]} 40. Qd1 {[%emt 0:00:00]} a5 {[%emt 0:00:00]} 41. Qa4 {[%emt 0:03:01]} Be7 {[%emt 0:02:52]} 42. fxg6 {[%emt 0:02:11]} hxg6 {[%emt 0:01:06]} 43. h5 {[%emt 0:00:06]} Qc7 {[%emt 0:00:24]} 44. hxg6 {[%emt 0:00:45]} Bxg6 {[%emt 0:00:09]} 45. Nf5 {[%emt 0:00:04]} Bf8 {[%emt 0:01:23]} 46. Qb3+ {[%emt 0:06:52]} Bf7 {[%emt 0:00:11]} 47. Qb8 {[%emt 0:00:16]} 1-0

[Event "EYCC Open-U14 2019"]
[Site "Bratislava"]
[Date "2019.08.03"]
[Round "2.8"]
[White "Trofimov, Pavel"]
[Black "Musyuk, Lior"]
[Result "1-0"]
[ECO "D35"]
[WhiteElo "2151"]
[BlackElo "2236"]
[Annotator "NA"]
[PlyCount "81"]
[EventDate "2019.08.02"]
[EventType "swiss"]
[EventCountry "SVK"]
[SourceTitle "playchess.com"]
[Source "ChessBase"]
[SourceQuality "1"]
[TimeControl "40/5400+30:1800+30"]

1. d4 {[%emt 0:00:00]} Nf6 {[%emt 0:00:00]} 2. c4 {[%emt 0:00:00]} e6 {[%emt 0:00:00]} 3. Nc3 {[%emt 0:00:00]} d5 {[%emt 0:00:15]} 4. cxd5 {[%emt 0:00:22]} Nxd5 {[%emt 0:00:36]} 5. e4 {[%emt 0:00:44]} Nxc3 {[%emt 0:00:32]} 6. bxc3 {[%emt 0:00:02]} c5 {[%emt 0:00:18]} 7. Nf3 {[%emt 0:00:32]} cxd4 {[%emt 0:00:37]} 8. cxd4 {[%emt 0:00:21]} Bb4+ {[%emt 0:00:27]} 9. Bd2 {[%emt 0:00:21]} Bxd2+ {[%emt 0:02:57]} 10. Qxd2 {[%emt 0:00:05]} O-O {[%emt 0:01:02]} 11. Be2 {[%emt 0:01:03]} b6 {[%emt 0:02:53]} 12. O-O {[%emt 0:00:41]} Bb7 {[%emt 0:01:31]} 13. Qf4 {[%emt 0:07:19]} Nc6 {[%emt 0:10:01]} 14. Rfd1 {[%emt 0:02:46]} Qe7 {[%emt 0:08:29]} 15. Bf1 {[%emt 0:08:05]} Nb4 {[%emt 0:11:55]} 16. a3 {[%emt 0:09:00]} Nc2 {[%emt 0:13:54]} 17. Ra2 {[%emt 0:06:45]} Rac8 {[%emt 0:00:36]} 18. Rc1 {[%emt 0:03:30]} g5 {[%emt 0:14:03]} 19. Nxg5 {[%emt 0:18:41]} Nxd4 {[%emt 0:01:46]} 20. Rxc8 {[%emt 0:01:42]} Bxc8 {[%emt 0:08:24]} 21. e5 {[%emt 0:06:28]} Nf5 {[%emt 0:10:39]} 22. Ne4 {[%emt 0:05:29]} Qh4 {[%emt 0:00:16]} 23. Nf6+ {[%emt 0:01:28]} Kg7 {[%emt 0:02:04]} 24. g4 {[%emt 0:01:43]} Ne7 {[%emt 0:03:39]} 25. Bg2 {[%emt 0:05:00]} Nd5 {[%emt 0:02:42]} 26. Bxd5 {[%emt 0:01:20]} exd5 {[%emt 0:00:01]} 27. Rd2 {[%emt 0:02:58]} Be6 {[%emt 0:00:36]} 28. Rd3 {[%emt 0:00:51]} Rc8 {[%emt 0:01:34]} 29. Kg2 Rc4 {[%emt 0:01:03]} 30. Qd2 {[%emt 0:07:43]} h6 {[%emt 0:01:27]} 31. f4 {[%emt 0:01:48]} d4 {[%emt 0:00:31]} 32. Rh3 {[%emt 0:01:40]} d3 {[%emt 0:00:09]} 33. Qxd3 {[%emt 0:04:01]} Bd5+ {[%emt 0:00:17]} 34. Nxd5 {[%emt 0:00:11]} Qe1 {[%emt 0:00:12]} 35. Qxc4 {[%emt 0:01:04]} Qd2+ {[%emt 0:00:06]} 36. Kf3 {[%emt 0:00:27]} Qd1+ {[%emt 0:00:11]} 37. Ke4 {[%emt 0:00:30]} Qh1+ {[%emt 0:00:42]} 38. Kf5 {[%emt 0:00:48]} Qb1+ {[%emt 0:00:29]} 39. Rd3 {[%emt 0:00:42]} b5 {[%emt 0:00:25]} 40. Qd4 {[%emt 0:00:00]} Qc2 {[%emt 0:00:00]} 41. Nf6 {[%emt 0:00:31]} 1-0

[Event "EYCC Open-U14 2019"]
[Site "Bratislava"]
[Date "2019.08.03"]
[Round "2.9"]
[White "Stukan, Martin"]
[Black "Falkevall, Axel"]
[Result "1-0"]
[ECO "C14"]
[WhiteElo "2303"]
[BlackElo "2067"]
[Annotator "NA"]
[PlyCount "83"]
[EventDate "2019.08.02"]
[EventType "swiss"]
[EventCountry "SVK"]
[SourceTitle "playchess.com"]
[Source "ChessBase"]
[SourceQuality "1"]
[TimeControl "40/5400+30:1800+30"]

1. e4 {[%emt 0:00:00]} e6 {[%emt 0:00:00]} 2. d4 {[%emt 0:00:00]} d5 {[%emt 0:00:00]} 3. Nc3 {[%emt 0:00:00]} Nf6 {[%emt 0:00:00]} 4. Bg5 {[%emt 0:00:00]} Be7 {[%emt 0:00:17]} 5. e5 {[%emt 0:00:00]} Nfd7 {[%emt 0:00:07]} 6. Bxe7 {[%emt 0:00:00]} Qxe7 {[%emt 0:00:10]} 7. f4 {[%emt 0:00:12]} a6 {[%emt 0:00:38]} 8. Nf3 {[%emt 0:00:19]} c5 {[%emt 0:00:39]} 9. dxc5 {[%emt 0:00:28]} Nxc5 {[%emt 0:02:21]} 10. Qd2 {[%emt 0:02:20]} Nc6 {[%emt 0:01:43]} 11. Bd3 {[%emt 0:01:27]} b5 {[%emt 0:04:07]} 12. O-O {[%emt 0:05:35]} O-O {[%emt 0:06:06]} 13. Qe3 {[%emt 0:05:22]} Nxd3 {[%emt 0:05:02]} 14. cxd3 {[%emt 0:05:42]} Rd8 {[%emt 0:09:06]} 15. Nd4 {[%emt 0:09:09]} Qa7 {[%emt 0:11:16]} 16. Nce2 {[%emt 0:02:04]} Bd7 {[%emt 0:03:09]} 17. Rfc1 {[%emt 0:03:37]} Rdc8 {[%emt 0:04:36]} 18. Kf2 {[%emt 0:01:05]} Na5 {[%emt 0:13:44]} 19. b4 {[%emt 0:05:03]} Nb7 {[%emt 0:01:24]} 20. Nb3 {[%emt 0:06:02]} Qxe3+ {[%emt 0:01:23]} 21. Kxe3 {[%emt 0:00:14]} Kf8 {[%emt 0:01:12]} 22. Rxc8+ {[%emt 0:07:41]} Rxc8 {[%emt 0:01:30]} 23. Rc1 {[%emt 0:00:03]} Rxc1 {[%emt 0:02:23]} 24. Nexc1 {[%emt 0:00:04]} Ke7 {[%emt 0:00:12]} 25. Kd4 {[%emt 0:00:33]} Kd8 {[%emt 0:01:03]} 26. Nc5 {[%emt 0:01:27]} Nxc5 {[%emt 0:00:21]} 27. Kxc5 {[%emt 0:00:34]} Kc7 {[%emt 0:00:10]} 28. Nb3 {[%emt 0:03:06]} Bc8 {[%emt 0:04:09]} 29. Nd4 {[%emt 0:01:37]} Bd7 {[%emt 0:02:12]} 30. g4 {[%emt 0:04:18]} Bc8 {[%emt 0:04:42]} 31. g5 {[%emt 0:05:05]} Bd7 {[%emt 0:05:19]} 32. h4 {[%emt 0:00:21]} Be8 {[%emt 0:07:44]} 33. h5 {[%emt 0:07:14]} h6 {[%emt 0:02:57]} 34. gxh6 {[%emt 0:00:49]} gxh6 {[%emt 0:00:15]} 35. f5 {[%emt 0:00:09]} exf5 {[%emt 0:01:27]} 36. Nxf5 {[%emt 0:00:18]} f6 {[%emt 0:00:49]} 37. exf6 {[%emt 0:01:10]} Bxh5 {[%emt 0:00:11]} 38. Nxh6 {[%emt 0:00:06]} Kd7 {[%emt 0:00:24]} 39. Kxd5 {[%emt 0:00:07]} Be2 {[%emt 0:00:37]} 40. Ke4 {[%emt 0:00:00]} Ke6 {[%emt 0:00:00]} 41. f7 {[%emt 0:00:58]} Ke7 {[%emt 0:00:41]} 42. a3 {[%emt 0:00:13]} 1-0

[Event "EYCC Open-U14 2019"]
[Site "Bratislava"]
[Date "2019.08.03"]
[Round "2.10"]
[White "Stalmach, Richard"]
[Black "Indriunas, Matas"]
[Result "1-0"]
[ECO "E90"]
[WhiteElo "2381"]
[BlackElo "1960"]
[Annotator "NA"]
[PlyCount "59"]
[EventDate "2019.08.02"]
[EventType "swiss"]
[EventCountry "SVK"]
[SourceTitle "playchess.com"]
[Source "ChessBase"]
[SourceQuality "1"]
[TimeControl "40/5400+30:1800+30"]

1. d4 {[%emt 0:00:00]} Nf6 {[%emt 0:00:00]} 2. c4 {[%emt 0:00:00]} g6 {[%emt 0:00:00]} 3. Nc3 {[%emt 0:00:00]} Bg7 {[%emt 0:00:00]} 4. e4 {[%emt 0:00:00]} d6 {[%emt 0:00:11]} 5. Nf3 {[%emt 0:00:17]} O-O {[%emt 0:00:58]} 6. h3 {[%emt 0:00:12]} e5 {[%emt 0:11:07]} 7. d5 {[%emt 0:03:03]} a5 {[%emt 0:05:52]} 8. Be2 {[%emt 0:00:50]} Na6 {[%emt 0:05:55]} 9. Be3 {[%emt 0:01:03]} Kh8 {[%emt 0:11:44]} 10. g4 {[%emt 0:11:10]} Nc5 {[%emt 0:06:16]} 11. Nd2 {[%emt 0:00:27]} Ng8 {[%emt 0:01:33]} 12. a3 {[%emt 0:09:21]} Bh6 {[%emt 0:06:59]} 13. Bxh6 {[%emt 0:19:22]} Nxh6 {[%emt 0:00:09]} 14. b4 {[%emt 0:03:55]} axb4 {[%emt 0:08:11]} 15. axb4 {[%emt 0:00:10]} Rxa1 {[%emt 0:00:04]} 16. Qxa1 {[%emt 0:00:04]} Na6 {[%emt 0:02:15]} 17. Qa3 {[%emt 0:03:25]} f5 {[%emt 0:02:16]} 18. c5 {[%emt 0:06:00]} fxg4 {[%emt 0:16:43]} 19. c6 {[%emt 0:02:55]} Qf6 {[%emt 0:03:02]} 20. cxb7 {[%emt 0:00:46]} Bxb7 {[%emt 0:01:03]} 21. Bxa6 {[%emt 0:01:40]} Qxf2+ {[%emt 0:00:23]} 22. Kd1 {[%emt 0:00:03]} g3 {[%emt 0:06:23]} 23. Rf1 {[%emt 0:20:27]} Bxa6 {[%emt 0:03:55]} 24. Rxf2 {[%emt 0:01:20]} Rxf2 {[%emt 0:00:09]} 25. Qxa6 {[%emt 0:00:30]} g2 {[%emt 0:00:52]} 26. Ne2 {[%emt 0:00:24]} Rf1+ {[%emt 0:00:52]} 27. Kc2 {[%emt 0:00:13]} Rf2 {[%emt 0:00:24]} 28. Qa7 {[%emt 0:00:45]} Rxe2 {[%emt 0:00:07]} 29. Kd1 {[%emt 0:00:02]} c5 {[%emt 0:00:19]} 30. dxc6 {[%emt 0:00:04]} 1-0

[Event "EYCC Open-U14 2019"]
[Site "Bratislava"]
[Date "2019.08.03"]
[Round "2.11"]
[White "Paduano, Claudio"]
[Black "Vojta, Jakub"]
[Result "0-1"]
[ECO "D86"]
[WhiteElo "2037"]
[BlackElo "2238"]
[Annotator "NA"]
[PlyCount "80"]
[EventDate "2019.08.02"]
[EventType "swiss"]
[EventCountry "SVK"]
[SourceTitle "playchess.com"]
[Source "ChessBase"]
[SourceQuality "1"]
[TimeControl "40/5400+30:1800+30"]

1. d4 {[%emt 0:00:00]} Nf6 {[%emt 0:00:00]} 2. c4 {[%emt 0:00:01]} g6 {[%emt 0:00:00]} 3. Nc3 {[%emt 0:00:08]} d5 {[%emt 0:00:00]} 4. cxd5 {[%emt 0:00:07]} Nxd5 {[%emt 0:00:00]} 5. e4 {[%emt 0:00:27]} Nxc3 {[%emt 0:00:00]} 6. bxc3 {[%emt 0:00:09]} Bg7 {[%emt 0:00:00]} 7. Bc4 {[%emt 0:03:34]} c5 {[%emt 0:00:57]} 8. Ne2 O-O {[%emt 0:02:44]} 9. O-O {[%emt 0:15:59]} Nc6 {[%emt 0:00:07]} 10. Be3 {[%emt 0:07:01]} Qc7 {[%emt 0:01:39]} 11. Rc1 {[%emt 0:15:09]} Rd8 {[%emt 0:00:10]} 12. Qd2 {[%emt 0:17:01]} a6 {[%emt 0:03:29]} 13. f4 {[%emt 0:27:10]} e6 {[%emt 0:02:04]} 14. f5 {[%emt 0:07:17]} exf5 {[%emt 0:02:29]} 15. exf5 {[%emt 0:01:03]} Bxf5 {[%emt 0:02:55]} 16. g4 {[%emt 0:02:22]} Be6 {[%emt 0:03:14]} 17. Bxe6 {[%emt 0:00:27]} fxe6 {[%emt 0:00:01]} 18. Bg5 {[%emt 0:00:34]} Rf8 {[%emt 0:02:43]} 19. Nf4 {[%emt 0:00:30]} Qd7 {[%emt 0:00:59]} 20. Qe2 {[%emt 0:00:30]} Rae8 {[%emt 0:04:03]} 21. dxc5 {[%emt 0:00:29]} e5 {[%emt 0:01:11]} 22. Qc4+ {[%emt 0:00:30]} Kh8 {[%emt 0:00:39]} 23. Nd5 {[%emt 0:00:31]} Nd4 {[%emt 0:13:35]} 24. Rxf8+ {[%emt 0:00:29]} Rxf8 {[%emt 0:00:11]} 25. Ne3 {[%emt 0:00:30]} Nf3+ {[%emt 0:00:12]} 26. Kh1 {[%emt 0:00:31]} Nxg5 {[%emt 0:00:17]} 27. Rd1 {[%emt 0:00:29]} Qc6+ {[%emt 0:00:54]} 28. Qd5 {[%emt 0:00:29]} Rd8 {[%emt 0:00:35]} 29. Qxc6 {[%emt 0:00:29]} Rxd1+ {[%emt 0:00:02]} 30. Nxd1 {[%emt 0:00:10]} bxc6 {[%emt 0:00:02]} 31. Kg2 {[%emt 0:00:51]} Ne4 {[%emt 0:00:14]} 32. Ne3 {[%emt 0:00:29]} Nxc3 {[%emt 0:00:15]} 33. Nc4 {[%emt 0:00:33]} Nxa2 {[%emt 0:00:24]} 34. Na5 {[%emt 0:00:21]} Nb4 {[%emt 0:00:11]} 35. Kf3 {[%emt 0:00:25]} Kg8 {[%emt 0:00:32]} 36. Ke4 {[%emt 0:00:42]} Kf7 {[%emt 0:00:14]} 37. h4 {[%emt 0:00:29]} Ke6 {[%emt 0:01:01]} 38. Nb7 {[%emt 0:00:32]} Bf6 {[%emt 0:00:29]} 39. g5 {[%emt 0:00:30]} Be7 {[%emt 0:00:07]} 40. Ke3 {[%emt 0:00:00]} Kd5 {[%emt 0:00:00] Kd4+} 0-1

[Event "EYCC Open-U14 2019"]
[Site "Bratislava"]
[Date "2019.08.03"]
[Round "2.12"]
[White "Fernandez Lopez, Ruben"]
[Black "Revaliente Montoya, Ciro"]
[Result "1-0"]
[ECO "B42"]
[WhiteElo "2207"]
[BlackElo "1917"]
[Annotator "NA"]
[PlyCount "77"]
[EventDate "2019.08.02"]
[EventType "swiss"]
[EventCountry "SVK"]
[SourceTitle "playchess.com"]
[Source "ChessBase"]
[SourceQuality "1"]
[TimeControl "40/5400+30:1800+30"]

1. e4 {[%emt 0:00:00]} c5 {[%emt 0:00:00]} 2. Nf3 {[%emt 0:00:00]} e6 {[%emt 0:00:00]} 3. d4 {[%emt 0:00:00]} cxd4 {[%emt 0:00:00]} 4. Nxd4 {[%emt 0:00:00]} a6 {[%emt 0:00:00]} 5. Bd3 {[%emt 0:00:00]} Qb6 {[%emt 0:00:04]} 6. Nb3 {[%emt 0:00:08]} Qc7 {[%emt 0:00:15]} 7. O-O {[%emt 0:00:24]} Nf6 {[%emt 0:00:15]} 8. f4 {[%emt 0:00:07]} d6 {[%emt 0:00:36]} 9. Nc3 {[%emt 0:00:09]} b5 {[%emt 0:00:06]} 10. e5 {[%emt 0:00:36]} b4 {[%emt 0:04:29]} 11. Ne4 {[%emt 0:17:30]} Nd5 {[%emt 0:08:16]} 12. f5 {[%emt 0:02:19]} dxe5 {[%emt 0:04:28]} 13. fxe6 {[%emt 0:00:18]} Bxe6 {[%emt 0:00:03]} 14. Ng5 {[%emt 0:00:24]} Nd7 {[%emt 0:08:44]} 15. Nxe6 {[%emt 0:27:06]} Qb6+ {[%emt 0:04:46]} 16. Ned4 {[%emt 0:00:47]} exd4 {[%emt 0:00:43]} 17. Re1+ {[%emt 0:01:12]} Be7 {[%emt 0:02:10]} 18. Qg4 {[%emt 0:16:15]} g6 {[%emt 0:13:05]} 19. Bg5 {[%emt 0:11:27]} f6 {[%emt 0:05:12]} 20. Qe4 {[%emt 0:03:16]} Qc6 {[%emt 0:07:21]} 21. Nxd4 {[%emt 0:00:13]} Qc5 {[%emt 0:00:08]} 22. Be3 {[%emt 0:00:07]} f5 {[%emt 0:03:48]} 23. Nxf5 {[%emt 0:01:07]} gxf5 {[%emt 0:00:32]} 24. Qf3 {[%emt 0:06:46]} Nxe3 {[%emt 0:02:49]} 25. Rxe3 {[%emt 0:00:15]} O-O {[%emt 0:01:27]} 26. Kh1 {[%emt 0:00:11]} Ne5 {[%emt 0:00:53]} 27. Qg3+ {[%emt 0:02:15]} Ng4 {[%emt 0:00:02]} 28. Rf3 {[%emt 0:00:32]} Bd6 {[%emt 0:03:07]} 29. Qh4 {[%emt 0:00:01]} Qe5 {[%emt 0:01:52]} 30. Rh3 {[%emt 0:02:18]} Ra7 {[%emt 0:01:48]} 31. Re1 {[%emt 0:00:14]} Qd4 {[%emt 0:01:01]} 32. Rf1 {[%emt 0:00:29]} Rg7 {[%emt 0:03:54]} 33. Rhf3 {[%emt 0:00:29]} Qe5 {[%emt 0:00:59]} 34. Rxf5 {[%emt 0:00:55]} Rxf5 {[%emt 0:05:40]} 35. Bxf5 {[%emt 0:00:59]} Nf2+ {[%emt 0:01:28]} 36. Kg1 {[%emt 0:00:11]} Qxf5 {[%emt 0:00:49]} 37. Rxf2 {[%emt 0:04:20]} Bc5 {[%emt 0:01:07]} 38. Qd8+ {[%emt 0:00:00]} Kf7 {[%emt 0:00:00]} 39. Qd7+ {[%emt 0:00:00]} 1-0

[Event "EYCC Open-U14 2019"]
[Site "Bratislava"]
[Date "2019.08.03"]
[Round "2.13"]
[White "Razafindratsima, Timothe"]
[Black "Zemach, Nadav"]
[Result "1-0"]
[ECO "C77"]
[WhiteElo "2178"]
[BlackElo "1997"]
[Annotator "NA"]
[PlyCount "103"]
[EventDate "2019.08.02"]
[EventType "swiss"]
[EventCountry "SVK"]
[SourceTitle "playchess.com"]
[Source "ChessBase"]
[SourceQuality "1"]
[TimeControl "40/5400+30:1800+30"]

1. e4 {[%emt 0:00:00]} e5 {[%emt 0:00:00]} 2. Nf3 {[%emt 0:00:00]} Nc6 {[%emt 0:00:00]} 3. Bb5 {[%emt 0:00:00]} a6 {[%emt 0:00:07]} 4. Ba4 {[%emt 0:00:00]} Nf6 {[%emt 0:00:12]} 5. d3 {[%emt 0:00:00]} b5 {[%emt 0:00:23]} 6. Bb3 {[%emt 0:00:06]} Be7 {[%emt 0:00:15]} 7. O-O {[%emt 0:00:15]} d6 {[%emt 0:00:19]} 8. a3 {[%emt 0:00:38]} O-O {[%emt 0:00:11]} 9. Nc3 {[%emt 0:00:28]} Bg4 {[%emt 0:00:25]} 10. Be3 {[%emt 0:01:48]} Nd4 {[%emt 0:00:17]} 11. Bxd4 {[%emt 0:00:23]} exd4 {[%emt 0:00:02]} 12. Nd5 {[%emt 0:00:16]} Nd7 {[%emt 0:00:23]} 13. h3 {[%emt 0:00:23]} Bxf3 {[%emt 0:00:40]} 14. Qxf3 {[%emt 0:00:42]} Ne5 {[%emt 0:01:07]} 15. Qh5 {[%emt 0:01:08]} c6 {[%emt 0:03:10]} 16. f4 {[%emt 0:04:43]} Nd7 {[%emt 0:06:58]} 17. Nxe7+ {[%emt 0:01:40]} Qxe7 {[%emt 0:00:29]} 18. Rae1 {[%emt 0:00:41]} Rae8 {[%emt 0:10:41]} 19. Qf3 {[%emt 0:15:13]} Kh8 {[%emt 0:07:28]} 20. e5 {[%emt 0:02:12]} d5 {[%emt 0:01:56]} 21. Qf2 {[%emt 0:00:50]} Qc5 {[%emt 0:01:57]} 22. Re2 {[%emt 0:02:22]} Re6 {[%emt 0:06:52]} 23. c3 {[%emt 0:05:45]} dxc3 {[%emt 0:01:18]} 24. d4 {[%emt 0:00:02]} Qe7 {[%emt 0:04:29]} 25. f5 {[%emt 0:01:04]} Rh6 {[%emt 0:00:37]} 26. bxc3 {[%emt 0:03:51]} Qxa3 {[%emt 0:08:40]} 27. Rb1 {[%emt 0:02:30]} Qe7 {[%emt 0:09:53]} 28. Ra1 {[%emt 0:01:11]} Nb8 {[%emt 0:04:20]} 29. Bc2 {[%emt 0:05:31]} Re8 {[%emt 0:08:24]} 30. Qg3 {[%emt 0:02:22]} Qh4 {[%emt 0:02:41]} 31. Qd3 {[%emt 0:02:39]} c5 {[%emt 0:02:21]} 32. dxc5 {[%emt 0:00:52]} Qc4 {[%emt 0:03:03]} 33. Qxc4 {[%emt 0:01:29]} dxc4 {[%emt 0:00:08]} 34. Rd1 {[%emt 0:03:31]} Rc6 {[%emt 0:01:19]} 35. e6 {[%emt 0:01:29]} fxe6 {[%emt 0:01:36]} 36. fxe6 {[%emt 0:00:06]} Kg8 {[%emt 0:00:37]} 37. e7 {[%emt 0:02:50]} Kf7 {[%emt 0:03:00]} 38. Rd8 {[%emt 0:00:33]} Rc8 {[%emt 0:01:38]} 39. Rxc8 {[%emt 0:05:02]} Rxc8 {[%emt 0:00:17]} 40. Bf5 {[%emt 0:00:00]} Re8 {[%emt 0:00:00]} 41. c6 {[%emt 0:02:56]} Nxc6 {[%emt 0:02:55]} 42. Bd7 {[%emt 0:00:11]} Rxe7 {[%emt 0:06:04]} 43. Rf2+ {[%emt 0:00:12]} Kg6 {[%emt 0:00:08]} 44. Bxc6 {[%emt 0:00:06]} Re6 {[%emt 0:04:43]} 45. Bd5 {[%emt 0:00:25]} Re3 {[%emt 0:05:16]} 46. Rc2 {[%emt 0:02:04]} Re1+ {[%emt 0:13:38]} 47. Kf2 {[%emt 0:00:19]} Ra1 {[%emt 0:00:33]} 48. Ke3 {[%emt 0:01:59]} a5 {[%emt 0:05:00]} 49. Bc6 {[%emt 0:00:49]} Rb1 {[%emt 0:01:21]} 50. Ra2 {[%emt 0:00:17]} Rb3 {[%emt 0:00:04]} 51. Kd4 {[%emt 0:00:31]} a4 {[%emt 0:00:28]} 52. Be4+ {[%emt 0:00:17]} 1-0